bitfinex/quotes_ETHUSD_20240713
["timestamp","ask_amount","ask_price","bid_price","bid_amount"]
[1720885012383,2.31707701,3166.4,3166.1,0.912]
[1720885012889,2.73704721,3166.7,3166.1,0.912]
[1720885013053,2.73704721,3166.7,3165.9,3.3492]
[1720885013258,0.23960651,3166.3,3165.9,3.3492]
[1720885013457,0.23960651,3166.2,3165.9,3.3492]
[1720885014261,0.23960651,3166.2,3165.9,2.4372]
[1720885014466,0.06882335,3166.7,3165.9,2.4372]
[1720885014988,0.98082335,3166.8,3165.9,2.4372]
[1720885015287,0.2396897,3166.7,3165.9,2.4372]
[1720885015460,2.55639428,3166.6,3165.9,3.3492]
[1720885015859,0.23966204,3166.5,3165.9,3.3492]
[1720885016060,0.23966204,3166.4,3165.9,3.3492]
[1720885016376,0.23966204,3166.3,3165.9,3.3492]
[1720885016583,2.31662534,3166.6,3165.9,3.3492]
[1720885016782,0.2396691,3166.5,3165.9,3.3492]
[1720885016961,0.2396691,3166.4,3165.9,3.3492]
[1720885017162,0.2396691,3166.3,3165.9,3.3492]
[1720885017392,2.31662534,3166.6,3165.9,3.3492]
[1720885017592,0.2396798,3166.5,3165.9,3.3492]
[1720885017760,0.2396798,3166.4,3165.9,3.3492]
[1720885017962,2.31662534,3166.6,3165.9,3.3492]
[1720885017963,0.2396798,3166.3,3165.9,3.68412]
[1720885018178,2.31660298,3166.6,3166.0,2.4029]
[1720885018513,2.31660298,3166.8,3166.3,0.912]
[1720885018731,0.23950391,3166.7,3166.3,0.912]
[1720885018937,0.23950391,3166.6,3166.4,0.55]
[1720885019081,0.23950391,3166.5,3166.4,0.55]
[1720885019622,2.31660298,3166.9,3166.4,0.55]
[1720885019828,0.23951595,3166.8,3166.4,0.55]
[1720885020041,0.23951595,3166.7,3166.4,0.55]
[1720885020182,0.23951595,3166.6,3166.4,0.55]
[1720885020382,2.31660298,3167.0,3166.5,3.3149]
[1720885020584,2.55609313,3166.9,3166.5,3.3149]
[1720885020800,0.23949015,3166.8,3166.5,3.3149]
[1720885021009,2.31640116,3166.9,3166.5,2.4029]
[1720885021207,0.23952189,3166.8,3166.5,2.4029]
[1720885021403,5.2906,3167.6,3166.5,2.4029]
[1720885021611,2.31625015,3167.0,3166.5,2.4029]
[1720885021819,0.23949634,3166.9,3166.5,2.4029]
[1720885022036,0.23949634,3166.8,3166.5,3.3149]
[1720885022327,0.23949634,3166.7,3166.5,3.3149]
[1720885022527,2.31625015,3167.0,3166.5,3.3149]
[1720885022723,0.23945464,3166.9,3166.5,3.3149]
[1720885022936,0.23945464,3166.8,3166.6,2.4029]
[1720885023233,1.24252048,3167.5,3166.6,2.4029]
[1720885023234,2.31625015,3167.3,3166.8,2.4029]
[1720885023527,0.23934891,3167.2,3167.1,0.912]
[1720885023944,2.31544055,3167.7,3167.2,2.4029]
[1720885024106,0.23918795,3167.6,3167.2,2.4029]
[1720885024302,0.23918508,3167.5,3167.2,2.4029]
[1720885024501,0.23918508,3167.4,3167.2,2.4029]
[1720885024716,2.54698461,3167.7,3167.2,2.4029]
[1720885025028,0.23918575,3167.6,3167.2,2.4029]
[1720885025220,0.23918575,3167.5,3167.2,2.4029]
[1720885025417,0.23918575,3167.4,3167.2,2.4029]
[1720885025617,2.31544055,3167.7,3167.2,2.4029]
[1720885025845,1.24250801,3168.1,3167.2,2.4029]
[1720885025846,0.23915897,3167.6,3167.2,2.4029]
[1720885026149,0.23915897,3167.5,3167.2,2.4029]
[1720885026353,2.31544055,3167.8,3167.3,0.912]
[1720885026575,0.23911454,3167.7,3167.3,0.912]
[1720885026880,0.23911454,3167.6,3167.3,0.912]
[1720885027167,0.33050801,3168.1,3167.3,0.912]
[1720885027318,2.31462441,3167.9,3167.3,0.912]
[1720885027521,2.55373231,3167.8,3167.3,0.912]
[1720885027751,0.2391079,3167.7,3167.2,2.4029]
[1720885028265,2.67187179,3167.9,3167.2,2.4029]
[1720885028266,0.2391079,3167.6,3167.2,2.4029]
[1720885028572,2.31462441,3167.9,3167.3,0.55]
[1720885028722,0.23909359,3167.8,3167.3,0.55]
[1720885028924,0.23909359,3167.7,3167.3,0.55]
[1720885029230,2.31462441,3167.9,3167.3,0.55]
[1720885029231,0.23910699,3167.6,3167.3,0.55]
[1720885029430,2.31462441,3168.0,3167.3,0.55]
[1720885029639,2.82513704,3167.9,3167.3,0.55]
[1720885029868,0.23911705,3167.8,3167.3,0.55]
[1720885030072,0.23911705,3167.7,3167.3,1.52513899]
[1720885030254,2.31462441,3168.1,3167.5,0.912]
[1720885030463,0.912,3168.5,3167.5,0.912]
[1720885030754,2.31300363,3168.2,3167.5,0.912]
[1720885030941,0.23903983,3168.1,3167.5,0.912]
[1720885031143,0.23903983,3168.0,3167.5,0.912]
[1720885031349,2.54430399,3168.2,3167.5,0.912]
[1720885031654,0.23902456,3168.1,3167.5,0.912]
[1720885031858,0.23902456,3168.0,3167.5,0.912]
[1720885032056,2.31300363,3168.3,3167.6,2.33873627]
[1720885032256,0.23899964,3168.2,3167.7,1.23707363]
[1720885032464,2.38182698,3168.6,3167.8,0.55]
[1720885032638,0.23893406,3168.5,3167.8,0.55]
[1720885032839,0.23893406,3168.4,3167.8,0.55]
[1720885033026,0.23893406,3168.3,3167.8,0.55]
[1720885033227,0.06882335,3168.2,3167.6,2.2756]
[1720885033446,0.06882335,3168.4,3167.6,2.2756]
[1720885033655,0.56840743,3168.3,3167.6,2.2756]
[1720885033857,0.23905487,3168.2,3167.6,2.2756]
[1720885034060,0.06882335,3168.4,3167.6,2.2756]
[1720885034222,0.23901115,3168.3,3167.6,2.2756]
[1720885034434,0.06882335,3168.4,3167.6,2.2756]
[1720885034629,0.23901486,3168.3,3167.6,2.2756]
[1720885034850,0.39787156,3168.4,3167.6,2.2756]
[1720885035046,0.23901663,3168.3,3167.6,2.2756]
[1720885035246,0.39787156,3168.4,3167.6,2.2756]
[1720885036853,0.06882335,3168.4,3167.6,2.2756]
[1720885042139,0.912,3168.3,3167.6,2.2756]
[1720885042339,0.06882335,3168.2,3167.6,2.2756]
[1720885047982,0.06882335,3168.4,3167.6,2.2756]
[1720885051084,0.2390521,3168.3,3167.6,2.2756]
[1720885051282,0.06882335,3168.2,3167.6,2.2756]
[1720885051468,0.06882335,3168.4,3167.6,2.59436]
[1720885051671,0.98082335,3168.4,3167.6,2.59436]
[1720885052199,0.23900794,3168.3,3167.6,2.59436]
[1720885052374,0.98082335,3168.4,3167.6,2.59436]
[1720885052575,0.30783595,3168.3,3167.6,2.59436]
[1720885052771,0.06882335,3168.3,3167.6,2.59436]
[1720885053165,0.23903066,3168.2,3167.6,2.59436]
[1720885053364,0.06882335,3168.3,3167.6,2.59436]
[1720885053597,0.23903528,3168.2,3167.6,2.59436]
[1720885053795,0.06882335,3168.3,3167.6,2.59436]
[1720885054002,0.23903533,3168.2,3167.6,2.59436]
[1720885054303,0.06882335,3168.3,3167.6,2.59436]
[1720885054497,0.23903384,3168.2,3167.6,2.59436]
[1720885054701,0.98082335,3168.4,3167.7,0.55]
[1720885054862,0.23903299,3168.3,3167.7,0.55]
[1720885055069,0.23903299,3168.2,3167.7,0.55]
[1720885055302,0.23903299,3168.1,3167.7,0.55]
[1720885055489,0.23903299,3168.0,3167.7,0.55]
[1720885055844,3.29183868,3168.4,3167.7,0.55]
[1720885056128,2.5500592,3168.3,3167.7,0.55]
[1720885056323,0.23904387,3168.2,3167.7,0.55]
[1720885056501,2.31101533,3168.3,3167.7,0.55]
[1720885056502,0.23904387,3168.1,3167.7,0.55]
[1720885056701,0.23904387,3168.0,3167.7,0.55]
[1720885056905,0.2390451,3167.9,3167.7,0.55]
[1720885057128,0.23904676,3167.8,3167.7,0.55]
[1720885057518,0.23903964,3167.8,3167.7,0.55]
[1720885058042,0.2667923,3167.8,3167.7,0.55]
[1720885060233,0.2668131,3167.8,3167.7,0.55]
[1720885060433,0.23906044,3167.8,3167.7,0.55]
[1720885060731,0.26681302,3167.8,3167.7,0.55]
[1720885061307,0.26681302,3167.8,3167.6,2.59436]
[1720885061532,0.02775266,3167.8,3167.7,0.55]
[1720885061731,0.2668053,3167.8,3167.7,0.55]
[1720885061938,0.23905264,3167.8,3167.7,0.55]
[1720885062228,0.02775283,3167.8,3167.7,0.55]
[1720885062431,0.23905264,3167.8,3167.7,0.55]
[1720885062731,0.26680574,3167.8,3167.7,0.55]
[1720885063301,0.26680618,3167.8,3167.6,2.59436]
[1720885063631,0.23905345,3167.7,3167.6,2.59436]
[1720885063840,0.26680622,3167.7,3167.6,3.14436]
[1720885065813,0.26680622,3167.7,3167.6,4.05636]
[1720885067020,0.26676476,3167.7,3167.6,4.05636]
[1720885068442,2.58705912,3167.7,3167.6,4.05636]
[1720885069070,0.26676476,3167.7,3167.6,4.05636]
[1720885070272,0.02775277,3167.7,3167.6,4.05636]
[1720885070470,0.23903531,3167.7,3167.6,4.05636]
[1720885070796,0.0277508,3167.7,3167.6,4.05636]
[1720885071012,0.26679861,3167.7,3167.6,4.05636]
[1720885071214,0.23904781,3167.7,3167.6,4.05636]
[1720885071565,0.26679861,3167.7,3167.6,4.05636]
[1720885073683,0.26679621,3167.7,3167.6,4.05636]
[1720885074081,0.26679621,3167.7,3167.6,2.2756]
[1720885074285,0.26679621,3167.7,3167.2,7.41]
[1720885074483,2.74653643,3167.4,3167.2,7.41]
[1720885074794,0.23904541,3167.3,3167.2,7.41]
[1720885074980,3.01332552,3167.3,3167.2,7.41]
[1720885075402,0.26678909,3167.3,3167.2,7.41]
[1720885075901,3.2867185,3167.4,3167.2,7.41]
[1720885076079,3.52612885,3167.3,3167.2,7.41]
[1720885076499,0.23941035,3167.3,3167.2,7.41]
[1720885077084,0.23944947,3167.3,3167.2,7.41]
[1720885079201,2.98231723,3167.3,3167.2,7.41]
[1720885079795,2.98231723,3167.3,3166.8,3.1933]
[1720885079979,2.32146784,3167.0,3166.8,3.1933]
[1720885080183,0.06882335,3167.5,3166.8,3.1933]
[1720885080384,3.2867185,3167.6,3166.8,3.1933]
[1720885080385,2.32148949,3167.0,3166.8,3.1933]
[1720885080667,2.74225946,3167.3,3166.8,3.1933]
[1720885080668,2.56088025,3166.9,3166.8,3.1933]
[1720885081072,2.56088025,3166.9,3166.8,3.7433]
[1720885081806,0.23939076,3166.9,3166.8,3.7433]
[1720885082811,0.23942149,3166.9,3166.8,3.1933]
[1720885083184,2.32058553,3167.0,3166.8,3.1933]
[1720885083375,0.23940577,3166.9,3166.8,3.1933]
[1720885083779,0.23940577,3166.9,3166.8,4.25363]
[1720885085137,0.23940577,3166.9,3166.8,4.80363]
[1720885085472,0.23923808,3166.9,3166.8,4.80363]
[1720885085944,0.06882335,3167.8,3166.9,2.2813]
[1720885086153,2.31968961,3167.3,3167.2,0.912]
[1720885086296,2.55892803,3167.3,3167.2,3.1933]
[1720885089421,2.31947065,3167.3,3167.2,3.1933]
[1720885089737,2.5587297,3167.3,3167.2,3.1933]
[1720885092061,0.23925905,3167.3,3167.2,3.1933]
[1720885092352,2.55859194,3167.3,3167.2,3.1933]
[1720885092745,2.55853443,3167.3,3167.2,3.1933]
[1720885093064,0.06882335,3167.8,3167.2,3.1933]
[1720885093352,2.31928442,3167.3,3167.2,3.1933]
[1720885093568,2.55856899,3167.3,3167.2,3.1933]
[1720885093911,0.23928457,3167.3,3167.2,3.1933]
[1720885094111,2.55856899,3167.3,3167.2,3.1933]
[1720885095619,0.23928457,3167.3,3167.2,3.1933]
[1720885095821,0.06882335,3167.9,3167.2,3.1933]
[1720885096065,2.31919344,3167.3,3167.2,3.1933]
[1720885096222,2.55843051,3167.3,3167.2,3.1933]
[1720885096771,0.23923707,3167.3,3167.2,3.1933]
[1720885097063,2.55843051,3167.3,3167.2,3.1933]
[1720885098864,0.23923707,3167.3,3167.2,3.1933]
[1720885099367,2.55864919,3167.3,3167.2,3.1933]
[1720885100871,2.55864919,3167.3,3167.2,2.2813]
[1720885101098,0.23927177,3167.3,3167.2,2.2813]
[1720885101472,0.23927177,3167.3,3167.0,3.3943]
[1720885101805,2.55888016,3167.2,3167.0,3.3943]
[1720885102003,0.23927177,3167.1,3166.8,1.462]
[1720885102223,0.23927177,3167.1,3166.7,2.4823]
[1720885102684,0.23938261,3167.0,3166.7,2.4823]
[1720885102890,0.23938261,3166.9,3166.7,2.4823]
[1720885103203,0.23938188,3166.8,3166.7,2.4823]
[1720885103383,0.23938188,3166.8,3166.7,3.0323]
[1720885104498,0.23938188,3166.8,3166.4,2.4823]
[1720885104713,0.23938188,3166.7,3166.5,0.24823]
[1720885104860,2.31974528,3167.0,3166.7,0.912]
[1720885105062,2.55921037,3166.9,3166.7,0.912]
[1720885105298,0.23946509,3166.8,3166.7,0.912]
[1720885105804,2.2776,3167.3,3166.7,0.912]
[1720885105970,2.31993604,3166.9,3166.7,0.912]
[1720885106170,0.23947087,3166.8,3166.7,0.912]
[1720885107713,0.23947087,3166.8,3166.7,3.3943]
[1720885107864,0.23947087,3166.8,3166.7,4.28373]
[1720885112600,0.23943553,3166.8,3166.7,4.28373]
[1720885113097,0.23943998,3166.9,3166.7,4.28373]
[1720885113402,2.56021519,3166.9,3166.8,1.462]
[1720885113788,2.56021519,3166.9,3166.8,0.912]
[1720885114890,0.23943998,3166.9,3166.8,0.912]
[1720885115602,0.23943998,3166.9,3166.8,3.65333]
[1720885115828,2.478,3168.0,3166.8,4.20333]
[1720885116100,2.32153777,3167.1,3166.8,2.9519]
[1720885116297,2.74231649,3167.3,3167.0,0.912]
[1720885116498,0.23934929,3167.2,3167.0,0.912]
[1720885116685,0.23934929,3167.1,3167.0,0.912]
[1720885116906,2.56137416,3167.1,3167.0,0.912]
[1720885117500,0.23934929,3167.1,3167.0,0.912]
[1720885119305,0.23927354,3167.1,3167.0,0.912]
[1720885122709,0.23927168,3167.1,3167.0,0.912]
[1720885124574,0.23927168,3167.1,3167.0,3.70029]
[1720885124780,0.23927168,3167.1,3167.0,4.25029]
[1720885125011,2.56329958,3167.1,3167.0,4.25029]
[1720885125720,3.2867185,3167.7,3167.0,4.25029]
[1720885125931,2.32394784,3167.1,3167.0,2.9519]
[1720885126082,2.56315392,3167.1,3167.0,3.8639]
[1720885126422,0.23920615,3167.1,3167.0,3.8639]
[1720885129079,0.2392498,3167.1,3167.0,3.8639]
[1720885129326,2.74526726,3167.3,3167.0,3.8639]
[1720885129621,0.2392498,3167.2,3167.0,2.9519]
[1720885129793,2.74526726,3167.3,3167.1,1.462]
[1720885130124,0.23925575,3167.2,3167.1,1.462]
[1720885132453,0.23927985,3167.2,3167.1,1.462]
[1720885132769,2.56335451,3167.2,3167.1,4.25029]
[1720885132924,0.23927985,3167.2,3167.1,4.25029]
[1720885133456,2.56335451,3167.2,3167.1,4.25029]
[1720885133606,0.23927985,3167.2,3167.1,4.25029]
[1720885133809,2.56335451,3167.2,3167.1,4.25029]
[1720885134617,0.23927985,3167.2,3167.1,4.25029]
[1720885135469,2.56335451,3167.2,3167.1,4.25029]
[1720885135665,2.56270149,3167.2,3167.1,4.25029]
[1720885136177,3.2867185,3167.8,3167.1,4.25029]
[1720885136343,2.3234867,3167.2,3167.1,3.33829]
[1720885136525,0.23919228,3167.2,3167.1,4.25029]
[1720885139269,0.23912014,3167.2,3167.1,4.25029]
[1720885139426,3.2867185,3168.0,3167.1,4.25029]
[1720885139630,2.3225905,3167.4,3167.1,2.9519]
[1720885139858,0.23912459,3167.3,3167.1,2.9519]
[1720885140067,0.23912459,3167.3,3167.2,0.912]
[1720885140371,0.23912459,3167.3,3167.2,1.462]
[1720885140741,0.23912459,3167.3,3167.2,0.55]
[1720885140940,2.56171509,3167.3,3167.2,0.912]
[1720885141147,0.23912459,3167.3,3167.2,0.912]
[1720885141347,0.23912459,3167.4,3167.2,0.912]
[1720885141555,0.23912459,3167.4,3167.3,0.912]
[1720885142551,0.23925293,3167.4,3167.3,0.912]
[1720885144757,0.23927339,3167.4,3167.3,0.912]
[1720885146871,2.5616879,3167.4,3167.3,3.1991]
[1720885147934,0.23927339,3167.4,3167.3,4.06901]
[1720885148141,0.23906617,3167.4,3167.3,4.06901]
[1720885148948,0.23906617,3167.4,3167.3,7.06901]
[1720885149376,2.32214603,3167.9,3167.4,2.2723]
[1720885149670,0.23894154,3167.8,3167.6,2.2723]
[1720885149884,2.32214603,3167.9,3167.8,0.912]
[1720885150079,2.56108748,3167.9,3167.8,0.912]
[1720885150283,2.55976454,3167.9,3167.8,0.912]
[1720885151179,0.23894145,3167.9,3167.8,0.912]
[1720885151365,0.23889453,3167.9,3167.8,0.912]
[1720885151568,0.23889453,3167.9,3167.8,1.78043]
[1720885151763,2.32009248,3168.1,3167.8,1.78043]
[1720885152087,0.23881898,3168.0,3167.8,0.86843]
[1720885152294,0.23881898,3167.9,3167.8,0.86843]
[1720885152586,0.23881898,3167.9,3167.8,1.78043]
[1720885153714,0.23881898,3167.9,3167.8,4.16163]
[1720885153993,2.32009248,3168.3,3167.8,4.16163]
[1720885154193,0.23878245,3168.2,3167.9,0.966163]
[1720885154392,5.6383185,3169.0,3168.1,0.912]
[1720885154686,2.31837079,3168.4,3168.0,2.3812]
[1720885154876,2.73856331,3168.7,3168.3,0.912]
[1720885155071,2.31836077,3168.4,3168.0,2.3812]
[1720885155272,0.23876666,3168.3,3168.0,2.3812]
[1720885155492,2.31836077,3168.5,3168.2,0.912]
[1720885155657,2.31836077,3168.5,3168.0,2.3812]
[1720885155658,0.23876656,3168.4,3168.0,2.3812]
[1720885155853,0.23876656,3168.3,3168.0,2.3812]
[1720885156059,0.23876656,3168.2,3168.0,2.3812]
[1720885156299,2.31836077,3168.5,3168.1,0.912]
[1720885156464,0.23877743,3168.4,3168.3,0.912]
[1720885157189,0.23877743,3168.4,3168.3,3.2932]
[1720885157365,0.23877743,3168.4,3168.3,3.62252]
[1720885157573,0.23870332,3168.4,3168.3,3.62252]
[1720885158289,2.31683288,3168.8,3168.3,3.62252]
[1720885158492,0.23865916,3168.7,3168.6,0.912]
[1720885158918,0.23865916,3168.7,3168.3,2.3812]
[1720885159214,0.23865916,3168.6,3168.5,0.912]
[1720885159420,0.23865916,3168.6,3168.3,2.3812]
[1720885159720,0.23865916,3168.6,3168.5,0.912]
[1720885160423,0.23865916,3168.6,3168.3,2.3812]
[1720885160575,0.52195451,3168.6,3168.3,0.912]
[1720885160773,0.23880122,3168.5,3168.3,0.912]
[1720885160973,2.59918928,3168.6,3168.3,0.912]
[1720885160974,0.26680471,3168.4,3168.3,0.912]
[1720885162393,0.26680471,3168.4,3168.3,3.2932]
[1720885162394,0.02800349,3168.4,3168.3,3.2932]
[1720885162617,2.31589393,3168.8,3168.3,3.2932]
[1720885162787,0.23870711,3168.7,3168.5,0.912]
[1720885163120,0.23870711,3168.6,3168.5,0.912]
[1720885163915,0.46674939,3168.8,3168.5,0.912]
[1720885164117,0.2387031,3168.7,3168.5,0.912]
[1720885164325,0.2387031,3168.6,3168.5,0.912]
[1720885164485,0.238789,3168.6,3168.5,0.912]
[1720885167127,2.3516,3169.0,3168.5,0.912]
[1720885167427,2.55309358,3168.9,3168.5,0.912]
[1720885167724,0.23864985,3168.8,3168.5,0.912]
[1720885170621,0.23867616,3168.7,3168.5,0.912]
[1720885170933,0.23867616,3168.6,3168.5,0.912]
[1720885171243,0.23867616,3168.8,3168.5,0.912]
[1720885171518,2.55280469,3168.8,3168.5,0.912]
[1720885171718,0.23867616,3168.7,3168.5,0.912]
[1720885171924,0.23867616,3168.6,3168.5,0.912]
[1720885172114,0.23867616,3168.8,3168.5,0.912]
[1720885172314,0.23867616,3168.7,3168.5,0.912]
[1720885172512,0.23867616,3168.6,3168.5,0.912]
[1720885172898,0.23867616,3168.8,3168.5,0.912]
[1720885173109,0.23867616,3168.7,3168.5,0.912]
[1720885173419,0.23867616,3168.6,3168.5,0.912]
[1720885173625,0.23867616,3168.8,3168.5,0.912]
[1720885173924,0.23871194,3168.7,3168.5,0.912]
[1720885174224,0.23871194,3168.7,3167.9,7.41]
[1720885174225,2.72123529,3168.6,3167.9,9.8548]
[1720885174423,0.23871194,3168.5,3168.1,0.912]
[1720885174941,0.02798924,3168.4,3168.1,0.912]
[1720885175643,2.48252335,3168.6,3168.3,0.912]
[1720885175787,0.71845724,3168.5,3168.3,0.912]
[1720885175989,2.31412853,3168.8,3168.3,3.3568]
[1720885176293,2.55288873,3168.7,3168.5,0.912]
[1720885176515,0.2387602,3168.6,3168.5,0.912]
[1720885176925,0.2387602,3168.6,3168.3,0.912]
[1720885177130,0.23878124,3168.5,3168.3,0.912]
[1720885177292,0.23878124,3168.4,3168.3,0.912]
[1720885177631,2.4137,3168.5,3168.3,0.912]
[1720885177831,0.23878526,3168.4,3168.3,0.912]
[1720885178292,0.23876719,3168.4,3168.3,0.912]
[1720885178954,0.23876719,3168.4,3168.3,3.3568]
[1720885179310,0.23876719,3168.4,3168.3,0.912]
[1720885180395,2.65574234,3169.0,3168.3,0.912]
[1720885180595,2.31580163,3168.7,3168.5,0.912]
[1720885180833,0.23876894,3168.6,3168.5,0.912]
[1720885182149,2.55457057,3168.6,3168.5,0.912]
[1720885183610,0.06882335,3168.9,3168.5,0.912]
[1720885183807,0.4869938,3168.8,3168.5,0.912]
[1720885184014,2.55515057,3168.7,3168.5,0.912]
[1720885184344,0.23874146,3168.6,3168.5,0.912]
[1720885185128,2.55515057,3168.6,3168.5,0.912]
[1720885185960,2.55515057,3168.6,3168.5,3.3568]
[1720885186253,0.23874146,3168.6,3168.5,3.3568]
[1720885187152,0.23869768,3168.6,3168.5,3.3568]
[1720885189349,2.55550286,3168.6,3168.5,3.3568]
[1720885189538,0.23869768,3168.6,3168.5,3.3568]
[1720885189736,2.55550286,3168.6,3168.5,3.3568]
[1720885189938,2.58346359,3168.6,3168.5,3.3568]
[1720885190321,0.02796073,3168.6,3168.5,3.3568]
[1720885190520,2.31897949,3168.6,3168.5,3.3568]
[1720885190722,2.55764842,3168.6,3168.5,3.3568]
[1720885190930,2.58561176,3168.6,3168.5,3.3568]
[1720885191331,2.58561176,3168.6,3168.5,3.69248]
[1720885191535,2.3196543,3169.2,3168.6,4.64921]
[1720885191880,2.3196543,3169.4,3169.1,0.912]
[1720885192040,2.3196543,3169.3,3168.6,2.4401]
[1720885192242,2.73929452,3169.4,3168.8,0.912]
[1720885192449,2.73929452,3169.3,3168.7,0.912]
[1720885192653,2.80811787,3169.2,3168.6,0.912]
[1720885192852,2.73929452,3169.1,3168.6,0.912]
[1720885193070,2.80811787,3169.0,3168.6,0.912]
[1720885193231,2.73929452,3169.0,3168.6,0.912]
[1720885193433,2.74139272,3169.1,3168.6,0.912]
[1720885193734,2.74143475,3169.0,3168.6,0.912]
[1720885194865,2.74143475,3168.9,3168.6,0.912]
[1720885195532,2.74143475,3169.0,3168.6,0.912]
[1720885195733,2.74143475,3168.9,3168.6,0.912]
[1720885196447,0.06882335,3169.1,3168.6,0.912]
[1720885196858,0.06882335,3169.1,3168.8,0.912]
[1720885197058,0.40437754,3169.1,3167.7,2.4838]
[1720885197242,2.74308532,3168.7,3168.4,0.912]
[1720885197765,2.74338046,3168.6,3168.4,0.912]
[1720885197968,2.743381,3168.6,3168.4,0.912]
[1720885200775,0.06882335,3168.8,3168.4,0.912]
[1720885200982,2.74375629,3168.6,3168.4,0.912]
[1720885201838,2.74375629,3168.6,3168.4,3.3958]
[1720885202181,2.74375629,3168.7,3168.5,0.33958]
[1720885202470,2.74375629,3168.6,3168.5,0.912]
[1720885202780,2.74375629,3168.6,3168.4,0.912]
[1720885203343,3.2867185,3168.9,3168.4,0.912]
[1720885203546,2.74387077,3168.6,3168.4,0.912]
[1720885203944,2.74389938,3168.7,3168.4,0.912]
[1720885204150,2.2605,3169.4,3168.4,0.912]
[1720885204151,2.74389938,3168.6,3168.4,0.912]
[1720885206637,2.7438619,3168.6,3168.4,0.912]
[1720885206936,0.06882335,3169.3,3168.4,0.912]
[1720885206937,2.74382696,3168.7,3168.4,0.912]
[1720885207233,2.74382696,3168.7,3168.6,0.912]
[1720885207637,2.74382696,3168.8,3168.6,0.912]
[1720885207841,2.74382696,3168.8,3168.7,2.4838]
[1720885208043,3.2867185,3169.1,3168.7,2.4838]
[1720885208044,2.74382696,3168.9,3168.7,2.4838]
[1720885208334,2.74375716,3168.8,3168.7,3.3958]
[1720885208644,2.74374843,3168.8,3168.7,3.3958]
[1720885208802,3.2867185,3169.1,3168.7,3.3958]
[1720885209002,3.2867185,3169.0,3168.7,3.3958]
[1720885209320,3.2867185,3168.9,3168.3,3.2062]
[1720885209497,2.74394381,3168.6,3168.3,3.2062]
[1720885209838,3.35554185,3168.9,3168.3,3.2062]
[1720885210144,2.74395179,3168.7,3168.3,2.2942]
[1720885210449,2.74395179,3168.8,3168.7,2.2942]
[1720885210617,2.74395179,3169.3,3168.7,2.6779301]
[1720885210822,2.74395179,3169.3,3169.2,0.912]
[1720885211022,0.18200525,3169.5,3169.0,0.912]
[1720885211328,2.7434588,3169.2,3169.0,0.912]
[1720885213873,2.7434588,3169.2,3168.9,0.912]
[1720885213874,2.74224369,3169.2,3168.9,0.912]
[1720885214343,2.74224369,3169.3,3169.1,0.912]
[1720885214666,0.1131819,3169.5,3169.1,0.912]
[1720885214667,2.74224369,3169.4,3169.1,0.912]
[1720885214809,2.74224369,3169.4,3169.3,0.912]
[1720885215518,2.74224369,3169.4,3169.1,0.912]
[1720885215729,2.74224369,3169.3,3169.1,0.912]
[1720885216208,0.1131819,3169.5,3169.1,0.912]
[1720885216411,2.74111454,3169.4,3169.1,0.912]
[1720885216840,2.74077253,3169.4,3169.1,0.912]
[1720885217686,2.74077253,3169.3,3168.7,2.2942]
[1720885217871,2.74077253,3169.3,3168.9,0.912]
[1720885218670,2.74077253,3169.3,3168.7,3.2062]
[1720885219466,0.18200525,3169.5,3168.7,3.2062]
[1720885219642,2.74034773,3169.3,3168.7,3.2062]
[1720885219842,2.74034773,3169.3,3168.2,3.0]
[1720885219843,2.74034773,3169.1,3168.3,2.4287]
[1720885220044,2.74034773,3168.9,3168.3,2.4287]
[1720885220249,3.2867185,3169.3,3167.7,0.912]
[1720885220250,2.74034773,3168.4,3167.7,0.912]
[1720885220473,2.81018542,3168.3,3167.7,0.912]
[1720885220769,2.81018542,3168.3,3167.9,0.912]
[1720885220970,2.74136207,3168.2,3167.9,0.912]
[1720885221277,2.81018542,3168.2,3167.7,0.912]
[1720885221568,2.81018542,3168.2,3166.7,4.63919]
[1720885221569,2.74136207,3168.0,3166.7,4.63919]
[1720885221756,2.74136207,3167.9,3167.4,0.912]
[1720885222146,2.74136207,3168.0,3167.4,0.912]
[1720885222340,2.74136207,3167.9,3167.6,0.912]
[1720885222534,2.80877579,3168.0,3166.8,2.187]
[1720885222769,2.73995244,3167.9,3166.9,0.682619]
[1720885223076,2.80877579,3168.0,3166.9,0.682619]
[1720885223574,2.80877579,3168.0,3166.9,3.682619]
[1720885224247,2.80877579,3168.0,3167.0,0.55]
[1720885224446,5.15297579,3168.0,3167.0,0.55]
[1720885224633,2.73995244,3167.8,3167.0,0.55]
[1720885224832,2.73995244,3167.8,3166.9,0.55]
[1720885224833,0.06882335,3167.8,3166.9,0.55]
[1720885225076,2.80877579,3167.8,3166.9,0.55]
[1720885225295,0.06882335,3167.8,3166.9,0.55]
[1720885225869,2.73728726,3168.0,3166.9,0.55]
[1720885226192,0.06882335,3167.9,3167.0,0.355]
[1720885226493,0.06882335,3168.0,3167.1,2.4287]
[1720885226693,0.06882335,3168.1,3167.1,2.4287]
[1720885226892,0.06882335,3168.1,3167.2,0.55]
[1720885231859,2.80383304,3168.2,3167.2,0.55]
[1720885232111,0.30848516,3168.1,3167.2,0.55]
[1720885232467,0.06882335,3168.2,3167.2,0.55]
[1720885232468,0.06882335,3168.0,3167.2,0.55]
[1720885233457,0.06882335,3167.9,3167.1,2.4287]
[1720885234200,0.06450393,3167.9,3167.1,2.4287]
[1720885234567,0.06450393,3168.1,3167.1,2.4287]
[1720885234789,0.27982158,3168.0,3167.1,2.4287]
[1720885235101,0.06450393,3167.9,3167.1,2.4287]
[1720885235983,0.06450393,3168.2,3167.1,2.4287]
[1720885238381,0.06450393,3168.2,3167.1,2.1537]
[1720885239410,2.36100393,3168.2,3167.1,2.1537]
[1720885239621,5.09318581,3168.2,3167.1,2.1537]
[1720885239773,0.81063862,3168.1,3167.1,2.1537]